[Event "*** SCC Grand Prix: Titled Tuesday Blitz"]
[Site "Chess.com"]
[Date "2020.08.25"]
[Round "5"]
[White "kuban1991"]
[Black "JesseKraai"]
[Result "1-0"]
[WhiteElo "2815"]
[BlackElo "2562"]
[TimeControl "180+1"]
[EndTime "10:56:34 PDT"]
[Termination "kuban1991 won by resignation"]

1. Nf3 {[%clk 0:02:59.3]} 1... b6 {[%clk 0:02:59.3]} 2. g3 {[%clk 0:02:59.2]}
2... Bb7 {[%clk 0:02:59.5]} 3. Bg2 {[%clk 0:02:59.7]} 3... Nf6 {[%clk
0:02:59.9]} 4. O-O {[%clk 0:03:00.2]} 4... g6 {[%clk 0:03:00.3]} 5. d3 {[%clk
0:03:00.6]} 5... Bg7 {[%clk 0:03:00.8]} 6. e4 {[%clk 0:03:01.1]} 6... O-O {[%clk
0:03:00.9]} 7. Nfd2 {[%clk 0:03:01.5]} 7... d5 {[%clk 0:02:58.3]} 8. Nc3 {[%clk
0:02:59.8]} 8... e6 {[%clk 0:02:46.1]} 9. a4 {[%clk 0:02:58.4]} 9... c5 {[%clk
0:02:45.1]} 10. a5 {[%clk 0:02:52.4]} 10... Nbd7 {[%clk 0:02:40.9]} 11. a6
{[%clk 0:02:49.1]} 11... Bc6 {[%clk 0:02:40.6]} 12. exd5 {[%clk 0:02:49.1]}
12... exd5 {[%clk 0:02:39.4]} 13. d4 {[%clk 0:02:40.2]} 13... Qc7 {[%clk
0:02:18.9]} 14. Nf3 {[%clk 0:02:39.1]} 14... Rad8 {[%clk 0:02:10.8]} 15. Bf4
{[%clk 0:02:38.1]} 15... Qc8 {[%clk 0:02:11]} 16. Re1 {[%clk 0:02:32.1]} 16...
Rfe8 {[%clk 0:02:09.7]} 17. h3 {[%clk 0:02:21.9]} 17... Ne4 {[%clk 0:02:04.9]}
18. Be3 {[%clk 0:02:03.9]} 18... Nxc3 {[%clk 0:01:58.5]} 19. bxc3 {[%clk
0:02:04.5]} 19... Bb5 {[%clk 0:01:37.6]} 20. h4 {[%clk 0:02:01.6]} 20... h6
{[%clk 0:01:33]} 21. Qd2 {[%clk 0:01:59.8]} 21... Kh7 {[%clk 0:01:32.3]} 22. h5
{[%clk 0:01:46.6]} 22... g5 {[%clk 0:01:28.1]} 23. Bxg5 {[%clk 0:01:46.5]} 23...
hxg5 {[%clk 0:01:27.7]} 24. Nxg5+ {[%clk 0:01:47.4]} 24... Kg8 {[%clk
0:01:27.8]} 25. Bxd5 {[%clk 0:01:46.2]} 25... Rxe1+ {[%clk 0:01:01.4]} 26. Rxe1
{[%clk 0:01:47.1]} 26... Nf6 {[%clk 0:01:01.6]} 27. Bxf7+ {[%clk 0:01:46.8]}
27... Kf8 {[%clk 0:00:55.7]} 28. Bg6 {[%clk 0:01:29.7]} 28... Bc4 {[%clk
0:00:53.7]} 29. h6 {[%clk 0:01:25.8]} 29... Bh8 {[%clk 0:00:52.7]} 30. Qf4
{[%clk 0:01:21.5]} 30... Kg8 {[%clk 0:00:30]} 31. Re7 {[%clk 0:01:11.9]} 31...
cxd4 {[%clk 0:00:25.1]} 32. Nh7 {[%clk 0:00:58.9]} 32... Qh3 {[%clk 0:00:17]}
33. Nxf6+ {[%clk 0:00:54.8]} 33... Bxf6 {[%clk 0:00:16.6]} 34. h7+ {[%clk
0:00:54.8]} 1-0

[Event "*** SCC Grand Prix: Titled Tuesday Blitz"]
[Site "Chess.com"]
[Date "2020.08.25"]
[Round "5"]
[White "Chessbard1972"]
[Black "MomchilPetkov"]
[Result "0-1"]
[WhiteElo "2400"]
[BlackElo "2551"]
[TimeControl "180+1"]
[EndTime "10:56:34 PDT"]
[Termination "MomchilPetkov won on time"]

1. d4 {[%clk 0:02:51.4]} 1... Nf6 {[%clk 0:02:59.5]} 2. Nf3 {[%clk 0:02:48.5]}
2... e6 {[%clk 0:02:59.7]} 3. c4 {[%clk 0:02:45.3]} 3... d5 {[%clk 0:03:00]} 4.
Nc3 {[%clk 0:02:33.7]} 4... Bb4 {[%clk 0:02:59.9]} 5. e3 {[%clk 0:02:32.3]} 5...
O-O {[%clk 0:02:57.6]} 6. Qa4 {[%clk 0:02:31.9]} 6... a5 {[%clk 0:02:52.2]} 7.
a3 {[%clk 0:02:29.8]} 7... Bxc3+ {[%clk 0:02:40.2]} 8. bxc3 {[%clk 0:02:29.3]}
8... Ne4 {[%clk 0:02:40.4]} 9. Qc2 {[%clk 0:02:26.3]} 9... c5 {[%clk 0:02:35.5]}
10. Bd3 {[%clk 0:02:23.5]} 10... b6 {[%clk 0:02:10.8]} 11. O-O {[%clk 0:02:20]}
11... Bb7 {[%clk 0:02:09.9]} 12. a4 {[%clk 0:02:16.3]} 12... Nd7 {[%clk
0:02:06.8]} 13. Ba3 {[%clk 0:02:13.5]} 13... Rc8 {[%clk 0:02:06.3]} 14. cxd5
{[%clk 0:01:51.7]} 14... exd5 {[%clk 0:02:05.1]} 15. Qb2 {[%clk 0:01:47.3]}
15... Re8 {[%clk 0:01:51.4]} 16. Nd2 {[%clk 0:01:35.2]} 16... Ndf6 {[%clk
0:01:44.8]} 17. f3 {[%clk 0:01:26.8]} 17... Nxd2 {[%clk 0:01:44.5]} 18. Qxd2
{[%clk 0:01:26.2]} 18... c4 {[%clk 0:01:27]} 19. Bf5 {[%clk 0:01:24.3]} 19...
Rc6 {[%clk 0:01:27]} 20. Rae1 {[%clk 0:01:20.5]} 20... Bc8 {[%clk 0:01:27.1]}
21. Bb1 {[%clk 0:01:18.2]} 21... Rce6 {[%clk 0:01:24.4]} 22. Qf2 {[%clk
0:01:05.1]} 22... Bd7 {[%clk 0:01:23.6]} 23. Bc2 {[%clk 0:01:03.1]} 23... g6
{[%clk 0:01:21]} 24. Re2 {[%clk 0:00:55.4]} 24... Bc6 {[%clk 0:01:19.2]} 25.
Rfe1 {[%clk 0:00:54.4]} 25... Qd7 {[%clk 0:01:19.2]} 26. Rb1 {[%clk 0:00:43.2]}
26... Bxa4 {[%clk 0:01:18.1]} 27. Bxa4 {[%clk 0:00:35.3]} 27... Qxa4 {[%clk
0:01:17.5]} 28. Bc1 {[%clk 0:00:34.7]} 28... Qc6 {[%clk 0:01:11.1]} 29. Reb2
{[%clk 0:00:33]} 29... Rb8 {[%clk 0:01:09.3]} 30. Qg3 {[%clk 0:00:28.1]} 30...
Rb7 {[%clk 0:01:03]} 31. Rb5 {[%clk 0:00:23.1]} 31... Ne8 {[%clk 0:00:58]} 32.
e4 {[%clk 0:00:21.1]} 32... Nc7 {[%clk 0:00:58.1]} 33. exd5 {[%clk 0:00:04.5]}
33... Nxd5 {[%clk 0:00:59]} 0-1

[Event "*** SCC Grand Prix: Titled Tuesday Blitz"]
[Site "Chess.com"]
[Date "2020.08.25"]
[Round "5"]
[White "JozefKneht"]
[Black "Gareth-Bale11"]
[Result "0-1"]
[WhiteElo "2442"]
[BlackElo "2740"]
[TimeControl "180+1"]
[EndTime "10:56:35 PDT"]
[Termination "Gareth-Bale11 won by resignation"]

1. Nf3 {[%clk 0:03:00.9]} 1... d5 {[%clk 0:02:58.6]} 2. d4 {[%clk 0:03:00.9]}
2... Nf6 {[%clk 0:02:54.4]} 3. Bf4 {[%clk 0:03:01.3]} 3... c5 {[%clk 0:02:53.9]}
4. e3 {[%clk 0:03:01.6]} 4... Nc6 {[%clk 0:02:54.5]} 5. c3 {[%clk 0:03:01.7]}
5... Bg4 {[%clk 0:02:54.2]} 6. Nbd2 {[%clk 0:03:00.7]} 6... e6 {[%clk
0:02:52.7]} 7. Be2 {[%clk 0:02:54.9]} 7... Be7 {[%clk 0:02:48.1]} 8. Qb3 {[%clk
0:02:50.7]} 8... Qc8 {[%clk 0:02:44.4]} 9. h3 {[%clk 0:02:40.2]} 9... Bh5 {[%clk
0:02:34.3]} 10. g4 {[%clk 0:02:38.8]} 10... Bg6 {[%clk 0:02:33.3]} 11. Ne5
{[%clk 0:02:39.3]} 11... Nxe5 {[%clk 0:02:31.3]} 12. dxe5 {[%clk 0:02:35.7]}
12... c4 {[%clk 0:02:29.2]} 13. Qd1 {[%clk 0:02:30.4]} 13... Nd7 {[%clk
0:02:23.9]} 14. Bg3 {[%clk 0:02:24.7]} 14... Qc7 {[%clk 0:02:16.2]} 15. f4
{[%clk 0:02:23.5]} 15... Qb6 {[%clk 0:02:14]} 16. Kf2 {[%clk 0:02:20.5]} 16...
Qxb2 {[%clk 0:02:04.7]} 17. f5 {[%clk 0:02:18.4]} 17... exf5 {[%clk 0:02:03.3]}
18. Rb1 {[%clk 0:02:18.8]} 18... Qxc3 {[%clk 0:02:01.7]} 19. Rxb7 {[%clk
0:02:18.1]} 19... Rd8 {[%clk 0:01:51]} 20. Rxa7 {[%clk 0:01:35.8]} 20... Bc5
{[%clk 0:01:42.4]} 21. Rxd7 {[%clk 0:01:26.7]} 21... Rxd7 {[%clk 0:01:38.5]} 22.
Kg2 {[%clk 0:01:24.3]} 22... O-O {[%clk 0:01:37.2]} 23. Nxc4 {[%clk 0:01:23.4]}
23... fxg4 {[%clk 0:01:31.9]} 24. Rf1 {[%clk 0:01:10.8]} 24... Ra7 {[%clk
0:01:11.5]} 25. Nd6 {[%clk 0:00:52.6]} 25... Rxa2 {[%clk 0:01:07]} 26. Bf4
{[%clk 0:00:31.4]} 26... gxh3+ {[%clk 0:01:02.3]} 27. Kg3 {[%clk 0:00:21.3]}
27... Bxe3 {[%clk 0:01:00.5]} 28. Rf3 {[%clk 0:00:21.2]} 28... Bxf4+ {[%clk
0:00:57.7]} 29. Kxf4 {[%clk 0:00:22.1]} 29... Qb4+ {[%clk 0:00:53]} 30. Kg3
{[%clk 0:00:21]} 30... Qb2 {[%clk 0:00:53.5]} 31. Rf2 {[%clk 0:00:11.6]} 31...
Qxe5+ {[%clk 0:00:52]} 0-1

[Event "*** SCC Grand Prix: Titled Tuesday Blitz"]
[Site "Chess.com"]
[Date "2020.08.25"]
[Round "5"]
[White "Mikhail_Golubev"]
[Black "Khazieva_Elza"]
[Result "1-0"]
[WhiteElo "2624"]
[BlackElo "2416"]
[TimeControl "180+1"]
[EndTime "10:56:35 PDT"]
[Termination "Mikhail_Golubev won by resignation"]

1. e4 {[%clk 0:02:58.8]} 1... c5 {[%clk 0:02:59.4]} 2. Nf3 {[%clk 0:02:58.2]}
2... d6 {[%clk 0:02:59.3]} 3. d4 {[%clk 0:02:58.5]} 3... cxd4 {[%clk 0:03:00.2]}
4. Nxd4 {[%clk 0:02:59]} 4... Nf6 {[%clk 0:03:00.9]} 5. Nc3 {[%clk 0:02:59.6]}
5... Nc6 {[%clk 0:03:01.1]} 6. Bc4 {[%clk 0:02:58.8]} 6... e6 {[%clk 0:03:01.1]}
7. Be3 {[%clk 0:02:57.8]} 7... Be7 {[%clk 0:02:58.4]} 8. Qe2 {[%clk 0:02:56.7]}
8... Qc7 {[%clk 0:02:58.1]} 9. O-O-O {[%clk 0:02:48.6]} 9... Nxd4 {[%clk
0:02:54]} 10. Bxd4 {[%clk 0:02:45.9]} 10... a6 {[%clk 0:02:54.3]} 11. Bb3 {[%clk
0:02:40.5]} 11... O-O {[%clk 0:02:53.7]} 12. Rhg1 {[%clk 0:02:35.6]} 12... b5
{[%clk 0:02:50.8]} 13. g4 {[%clk 0:02:35.1]} 13... Nd7 {[%clk 0:02:33.1]} 14. g5
{[%clk 0:02:27.8]} 14... Nc5 {[%clk 0:02:24.7]} 15. Qh5 {[%clk 0:02:15]} 15...
b4 {[%clk 0:01:51]} 16. Nd5 {[%clk 0:01:19.6]} 16... Nxb3+ {[%clk 0:01:44.8]}
17. axb3 {[%clk 0:01:19.3]} 17... exd5 {[%clk 0:01:44.1]} 18. Qh6 {[%clk
0:01:13.8]} 18... f6 {[%clk 0:01:32.5]} 19. gxf6 {[%clk 0:01:07.4]} 19... Bxf6
{[%clk 0:00:53.8]} 20. Bxf6 {[%clk 0:01:06.6]} 20... Rf7 {[%clk 0:00:46]} 21.
Rxd5 {[%clk 0:00:42.6]} 21... Be6 {[%clk 0:00:26.3]} 22. Rdg5 {[%clk 0:00:35.6]}
22... Ra7 {[%clk 0:00:26.4]} 23. Bxg7 {[%clk 0:00:29.1]} 23... Rxg7 {[%clk
0:00:18.9]} 24. Qxe6+ {[%clk 0:00:26.9]} 1-0

[Event "*** SCC Grand Prix: Titled Tuesday Blitz"]
[Site "Chess.com"]
[Date "2020.08.25"]
[Round "5"]
[White "Kildepiotr"]
[Black "r31415"]
[Result "1-0"]
[WhiteElo "2633"]
[BlackElo "2453"]
[TimeControl "180+1"]
[EndTime "10:56:38 PDT"]
[Termination "Kildepiotr won by resignation"]

1. Nf3 {[%clk 0:03:00.9]} 1... g6 {[%clk 0:02:50.9]} 2. g3 {[%clk 0:03:00.7]}
2... Bg7 {[%clk 0:02:50.6]} 3. d4 {[%clk 0:03:01.3]} 3... d6 {[%clk 0:02:45.7]}
4. Bg2 {[%clk 0:03:01.4]} 4... f5 {[%clk 0:02:44.7]} 5. O-O {[%clk 0:03:01]}
5... Nf6 {[%clk 0:02:44.8]} 6. Nbd2 {[%clk 0:03:01.2]} 6... O-O {[%clk
0:02:45.3]} 7. c3 {[%clk 0:03:01.6]} 7... Nc6 {[%clk 0:02:43]} 8. Qc2 {[%clk
0:03:02]} 8... e5 {[%clk 0:02:42.7]} 9. dxe5 {[%clk 0:02:58]} 9... Nxe5 {[%clk
0:02:36.2]} 10. e4 {[%clk 0:02:56]} 10... fxe4 {[%clk 0:02:26.3]} 11. Nxe5
{[%clk 0:02:54.9]} 11... dxe5 {[%clk 0:02:24.4]} 12. Nxe4 {[%clk 0:02:54.4]}
12... c6 {[%clk 0:02:16.4]} 13. Bg5 {[%clk 0:02:52.6]} 13... Bf5 {[%clk
0:02:08.7]} 14. Qb3+ {[%clk 0:02:45.7]} 14... Rf7 {[%clk 0:02:07.8]} 15. Rad1
{[%clk 0:02:40.1]} 15... Qb6 {[%clk 0:01:57.3]} 16. Nd6 {[%clk 0:02:14.3]} 16...
Qxb3 {[%clk 0:01:53.6]} 17. axb3 {[%clk 0:02:13.7]} 17... Rc7 {[%clk 0:01:49.5]}
18. Nxf5 {[%clk 0:02:07.3]} 18... gxf5 {[%clk 0:01:49]} 19. Bh3 {[%clk
0:02:04.2]} 19... Ng4 {[%clk 0:01:35.1]} 20. f3 {[%clk 0:01:58.1]} 20... Nh6
{[%clk 0:01:32.9]} 21. Bxh6 {[%clk 0:01:54.7]} 21... Bxh6 {[%clk 0:01:32.1]} 22.
Bxf5 {[%clk 0:01:55]} 22... Kg7 {[%clk 0:00:40.9]} 23. Rd6 {[%clk 0:01:52.6]}
23... Bg5 {[%clk 0:00:38.6]} 24. Rfd1 {[%clk 0:01:50.4]} 24... Re7 {[%clk
0:00:30.4]} 25. Kf2 {[%clk 0:01:42.9]} 25... Rae8 {[%clk 0:00:30.2]} 26. h4
{[%clk 0:01:39.2]} 26... Bf6 {[%clk 0:00:28.6]} 27. Ke3 {[%clk 0:01:38]} 27...
Rc7 {[%clk 0:00:26.4]} 28. Ke4 {[%clk 0:01:34.9]} 28... Rf8 {[%clk 0:00:20.6]}
29. g4 {[%clk 0:01:26]} 29... h6 {[%clk 0:00:20]} 30. g5 {[%clk 0:01:23.1]}
30... hxg5 {[%clk 0:00:18.4]} 31. hxg5 {[%clk 0:01:24]} 31... Be7 {[%clk
0:00:10.5]} 32. Rg6+ {[%clk 0:01:21.3]} 32... Kf7 {[%clk 0:00:09.4]} 33. Rh1
{[%clk 0:01:21.3]} 33... Ke8 {[%clk 0:00:08.5]} 34. Re6 {[%clk 0:01:12.8]} 34...
Kd8 {[%clk 0:00:06.9]} 35. g6 {[%clk 0:01:12.6]} 35... Bf6 {[%clk 0:00:05.1]}
36. Rd1+ {[%clk 0:01:06.5]} 36... Rd7 {[%clk 0:00:01.4]} 37. Rxd7+ {[%clk
0:01:06.2]} 37... Kxd7 {[%clk 0:00:02.3]} 1-0

[Event "*** SCC Grand Prix: Titled Tuesday Blitz"]
[Site "Chess.com"]
[Date "2020.08.25"]
[Round "5"]
[White "allvim"]
[Black "tsvet2005"]
[Result "1/2-1/2"]
[WhiteElo "2419"]
[BlackElo "2563"]
[TimeControl "180+1"]
[EndTime "10:56:39 PDT"]
[Termination "Game drawn by agreement"]

1. e4 {[%clk 0:03:00.9]} 1... c5 {[%clk 0:02:58.5]} 2. Nf3 {[%clk 0:02:57.4]}
2... d6 {[%clk 0:02:58.7]} 3. d4 {[%clk 0:02:56.8]} 3... cxd4 {[%clk 0:02:59.6]}
4. Nxd4 {[%clk 0:02:56.8]} 4... Nf6 {[%clk 0:02:59.2]} 5. Nc3 {[%clk 0:02:56.2]}
5... a6 {[%clk 0:02:59.8]} 6. Be2 {[%clk 0:02:40.6]} 6... e5 {[%clk 0:02:59.7]}
7. Nb3 {[%clk 0:02:40.1]} 7... Be7 {[%clk 0:02:59.9]} 8. O-O {[%clk 0:02:40.4]}
8... O-O {[%clk 0:03:00]} 9. f4 {[%clk 0:02:41]} 9... b5 {[%clk 0:02:59.5]} 10.
a3 {[%clk 0:02:31.4]} 10... Bb7 {[%clk 0:02:59]} 11. Bf3 {[%clk 0:02:31.2]}
11... Nbd7 {[%clk 0:02:58.7]} 12. Be3 {[%clk 0:02:26.1]} 12... exf4 {[%clk
0:02:57.1]} 13. Bxf4 {[%clk 0:02:27]} 13... Ne5 {[%clk 0:02:57.7]} 14. Bxe5
{[%clk 0:02:20.9]} 14... dxe5 {[%clk 0:02:58.6]} 15. Qe2 {[%clk 0:02:11.4]}
15... Qb6+ {[%clk 0:02:56.4]} 16. Kh1 {[%clk 0:02:11.5]} 16... Rfd8 {[%clk
0:02:56.5]} 17. Rad1 {[%clk 0:02:11.9]} 17... Rac8 {[%clk 0:02:54.1]} 18. Rxd8+
{[%clk 0:02:10.2]} 18... Rxd8 {[%clk 0:02:55]} 19. Rd1 {[%clk 0:02:10.4]} 19...
h6 {[%clk 0:02:54.4]} 20. Nd5 {[%clk 0:01:58.6]} 20... Bxd5 {[%clk 0:02:48.9]}
21. exd5 {[%clk 0:01:59.5]} 21... Bd6 {[%clk 0:02:49.6]} 22. Nd2 {[%clk
0:01:47.3]} 22... a5 {[%clk 0:02:24.9]} 23. Ne4 {[%clk 0:01:45]} 23... Nxe4
{[%clk 0:02:22]} 24. Bxe4 {[%clk 0:01:42.8]} 24... b4 {[%clk 0:02:22]} 25. axb4
{[%clk 0:01:29.3]} 25... axb4 {[%clk 0:02:22.9]} 26. Qg4 {[%clk 0:01:21.1]}
26... Qf2 {[%clk 0:02:13]} 27. h3 {[%clk 0:00:58.4]} 27... Rf8 {[%clk
0:02:04.4]} 28. Qd7 {[%clk 0:00:45.2]} 28... Qc5 {[%clk 0:01:54]} 29. Qf5 {[%clk
0:00:40.3]} 29... g6 {[%clk 0:01:52.9]} 30. Qf6 {[%clk 0:00:38.8]} 30... Qc7
{[%clk 0:01:43.3]} 31. Bxg6 {[%clk 0:00:20.1]} 31... fxg6 {[%clk 0:01:28.9]} 32.
Qxg6+ {[%clk 0:00:20.2]} 32... Kh8 {[%clk 0:01:29.5]} 33. Qxh6+ {[%clk
0:00:18.7]} 33... Kg8 {[%clk 0:01:29.9]} 34. Qg6+ {[%clk 0:00:15.4]} 34... Kh8
{[%clk 0:01:29.8]} 35. Qh6+ {[%clk 0:00:08.1]} 35... Kg8 {[%clk 0:01:29.3]} 36.
Qg6+ {[%clk 0:00:06.5]} 1/2-1/2

[Event "*** SCC Grand Prix: Titled Tuesday Blitz"]
[Site "Chess.com"]
[Date "2020.08.25"]
[Round "5"]
[White "InitiatingASC"]
[Black "The_Chess_Coach"]
[Result "0-1"]
[WhiteElo "2330"]
[BlackElo "2206"]
[TimeControl "180+1"]
[EndTime "10:56:39 PDT"]
[Termination "The_Chess_Coach won by checkmate"]

1. Nf3 {[%clk 0:03:00.9]} 1... Nf6 {[%clk 0:02:59.3]} 2. b3 {[%clk 0:02:52.6]}
2... g6 {[%clk 0:03:00.2]} 3. Bb2 {[%clk 0:02:51.6]} 3... Bg7 {[%clk 0:03:01.1]}
4. e3 {[%clk 0:02:51.6]} 4... O-O {[%clk 0:03:00.9]} 5. c4 {[%clk 0:02:51.2]}
5... d6 {[%clk 0:03:00.5]} 6. Be2 {[%clk 0:02:51.4]} 6... Nc6 {[%clk 0:02:56.1]}
7. O-O {[%clk 0:02:51.7]} 7... e5 {[%clk 0:02:54.8]} 8. d3 {[%clk 0:02:51.6]}
8... Re8 {[%clk 0:02:54.2]} 9. Nbd2 {[%clk 0:02:51.9]} 9... Bd7 {[%clk
0:02:38.2]} 10. a3 {[%clk 0:02:50.7]} 10... a5 {[%clk 0:02:36.9]} 11. Qc2 {[%clk
0:02:49.9]} 11... Qe7 {[%clk 0:02:33.1]} 12. Ne4 {[%clk 0:02:49.1]} 12... Nxe4
{[%clk 0:02:31.3]} 13. dxe4 {[%clk 0:02:50]} 13... f5 {[%clk 0:02:28]} 14. Bd3
{[%clk 0:02:39.9]} 14... Rf8 {[%clk 0:02:14.1]} 15. Nd2 {[%clk 0:02:26.5]} 15...
f4 {[%clk 0:02:10.8]} 16. exf4 {[%clk 0:02:25.5]} 16... Rxf4 {[%clk 0:02:10.1]}
17. Rfe1 {[%clk 0:02:12.4]} 17... Raf8 {[%clk 0:01:50.6]} 18. Re2 {[%clk
0:02:09.6]} 18... Bh6 {[%clk 0:01:44]} 19. Nf1 {[%clk 0:02:06.4]} 19... Qg5
{[%clk 0:01:04.1]} 20. Bc1 {[%clk 0:01:39.2]} 20... Nd4 {[%clk 0:01:02.5]} 21.
Bxf4 {[%clk 0:01:35.9]} 21... exf4 {[%clk 0:00:58.1]} 22. Qc1 {[%clk 0:01:20.1]}
22... Bh3 {[%clk 0:00:38.8]} 23. g3 {[%clk 0:01:11.2]} 23... Qh5 {[%clk
0:00:22.4]} 24. Raa2 {[%clk 0:00:26.9]} 24... Qf3 {[%clk 0:00:19.1]} 25. Ne3
{[%clk 0:00:20.9]} 25... fxe3 {[%clk 0:00:19]} 26. fxe3 {[%clk 0:00:21.2]} 26...
Qf1+ {[%clk 0:00:18.4]} 27. Qxf1 {[%clk 0:00:21.6]} 27... Rxf1# {[%clk
0:00:18.4]} 0-1

[Event "*** SCC Grand Prix: Titled Tuesday Blitz"]
[Site "Chess.com"]
[Date "2020.08.25"]
[Round "5"]
[White "Blagorod"]
[Black "anon569"]
[Result "1-0"]
[WhiteElo "2161"]
[BlackElo "2315"]
[TimeControl "180+1"]
[EndTime "10:56:39 PDT"]
[Termination "Blagorod won on time"]

1. e4 {[%clk 0:03:00.9]} 1... c5 {[%clk 0:02:59.1]} 2. Nc3 {[%clk 0:03:00.9]}
2... Nc6 {[%clk 0:02:58.2]} 3. g3 {[%clk 0:03:01.3]} 3... g6 {[%clk 0:02:58]} 4.
Bg2 {[%clk 0:03:01.9]} 4... Bg7 {[%clk 0:02:58.2]} 5. d3 {[%clk 0:03:02.6]} 5...
e6 {[%clk 0:02:57.6]} 6. Be3 {[%clk 0:03:02.2]} 6... Nd4 {[%clk 0:02:56.6]} 7.
f4 {[%clk 0:02:59.8]} 7... Ne7 {[%clk 0:02:55.5]} 8. e5 {[%clk 0:02:56.4]} 8...
d6 {[%clk 0:02:49.4]} 9. Ne4 {[%clk 0:02:39.3]} 9... dxe5 {[%clk 0:02:39.5]} 10.
fxe5 {[%clk 0:02:37.7]} 10... Bxe5 {[%clk 0:02:34]} 11. c3 {[%clk 0:02:37.8]}
11... Ndf5 {[%clk 0:01:51.3]} 12. Bxc5 {[%clk 0:02:37.3]} 12... b6 {[%clk
0:01:30.9]} 13. Bf2 {[%clk 0:02:12.4]} 13... Ba6 {[%clk 0:01:28.6]} 14. Nf3
{[%clk 0:02:00.5]} 14... Bg7 {[%clk 0:01:22]} 15. Qa4+ {[%clk 0:01:36.6]} 15...
b5 {[%clk 0:00:09.3]} 16. Qxa6 {[%clk 0:01:36.3]} 16... Qxd3 {[%clk 0:00:09.7]}
17. Nfd2 {[%clk 0:01:10.6]} 17... O-O {[%clk 0:00:08.4]} 18. O-O-O {[%clk
0:00:47.5]} 18... Rac8 {[%clk 0:00:05.3]} 19. Bf1 {[%clk 0:00:34.9]} 19... Qd5
{[%clk 0:00:02.9]} 20. Qxb5 {[%clk 0:00:26.4]} 1-0

[Event "*** SCC Grand Prix: Titled Tuesday Blitz"]
[Site "Chess.com"]
[Date "2020.08.25"]
[Round "5"]
[White "evgenyermolaev"]
[Black "IrinaDrogovoz"]
[Result "0-1"]
[WhiteElo "2467"]
[BlackElo "2350"]
[TimeControl "180+1"]
[EndTime "10:56:41 PDT"]
[Termination "IrinaDrogovoz won on time"]

1. d4 {[%clk 0:03:00.9]} 1... Nf6 {[%clk 0:02:58.8]} 2. Nc3 {[%clk 0:03:00.5]}
2... d5 {[%clk 0:02:58.5]} 3. Bf4 {[%clk 0:02:59.9]} 3... g6 {[%clk 0:02:56.2]}
4. e3 {[%clk 0:02:50.5]} 4... Bg7 {[%clk 0:02:56.4]} 5. f3 {[%clk 0:02:44.6]}
5... O-O {[%clk 0:02:56]} 6. h4 {[%clk 0:02:33]} 6... c5 {[%clk 0:02:50]} 7.
dxc5 {[%clk 0:02:21.6]} 7... Qa5 {[%clk 0:02:49.8]} 8. Qd2 {[%clk 0:02:13.6]}
8... Qxc5 {[%clk 0:02:47.6]} 9. O-O-O {[%clk 0:02:08.1]} 9... Nc6 {[%clk
0:02:40.2]} 10. Nxd5 {[%clk 0:01:54.3]} 10... Rd8 {[%clk 0:02:02.3]} 11. Nxf6+
{[%clk 0:01:52.9]} 11... Bxf6 {[%clk 0:02:00.6]} 12. Bd3 {[%clk 0:01:52.4]}
12... Nb4 {[%clk 0:01:55.1]} 13. Kb1 {[%clk 0:01:34.7]} 13... Qb6 {[%clk
0:01:27.7]} 14. Bc7 {[%clk 0:01:18.8]} 14... Qxc7 {[%clk 0:01:24.4]} 15. Qxb4
{[%clk 0:01:18.5]} 15... Be6 {[%clk 0:01:22.5]} 16. Ne2 {[%clk 0:01:11.9]} 16...
Rac8 {[%clk 0:01:21.7]} 17. h5 {[%clk 0:01:03.4]} 17... Rxd3 {[%clk 0:01:15.3]}
18. cxd3 {[%clk 0:01:02.4]} 18... Qc2+ {[%clk 0:01:14.2]} 19. Ka1 {[%clk
0:01:02.5]} 19... Qxe2 {[%clk 0:01:11.7]} 20. Rc1 {[%clk 0:00:49.5]} 20... Rd8
{[%clk 0:01:08.6]} 21. hxg6 {[%clk 0:00:32.2]} 21... hxg6 {[%clk 0:01:08.1]} 22.
e4 {[%clk 0:00:20]} 22... Qxd3 {[%clk 0:01:04.4]} 23. e5 {[%clk 0:00:13.7]}
23... Bxe5 {[%clk 0:01:02.9]} 24. Qxe7 {[%clk 0:00:13.5]} 24... Qd5 {[%clk
0:00:50.9]} 25. Qa3 {[%clk 0:00:10.1]} 25... Rd6 {[%clk 0:00:47.7]} 26. g4
{[%clk 0:00:03.4]} 26... Ra6 {[%clk 0:00:46.1]} 0-1

[Event "*** SCC Grand Prix: Titled Tuesday Blitz"]
[Site "Chess.com"]
[Date "2020.08.25"]
[Round "5"]
[White "crescentmoon2411"]
[Black "Keithonsky"]
[Result "1-0"]
[WhiteElo "2770"]
[BlackElo "2548"]
[TimeControl "180+1"]
[EndTime "10:56:45 PDT"]
[Termination "crescentmoon2411 won by checkmate"]

1. e4 {[%clk 0:03:00.9]} 1... e6 {[%clk 0:02:59]} 2. d4 {[%clk 0:03:00.5]} 2...
d5 {[%clk 0:02:58.6]} 3. Nc3 {[%clk 0:03:00.5]} 3... Nf6 {[%clk 0:02:57.6]} 4.
exd5 {[%clk 0:02:58.1]} 4... exd5 {[%clk 0:02:54.8]} 5. Bd3 {[%clk 0:02:58.1]}
5... Be6 {[%clk 0:02:53.5]} 6. Nge2 {[%clk 0:02:55.9]} 6... Nbd7 {[%clk
0:02:52.7]} 7. Nf4 {[%clk 0:02:49.5]} 7... Bd6 {[%clk 0:02:43.6]} 8. O-O {[%clk
0:02:45.7]} 8... O-O {[%clk 0:02:40.3]} 9. h3 {[%clk 0:02:38.2]} 9... c6 {[%clk
0:02:35.5]} 10. Nce2 {[%clk 0:02:32]} 10... Re8 {[%clk 0:02:35.6]} 11. Ng3
{[%clk 0:02:29.8]} 11... Qc7 {[%clk 0:02:34.2]} 12. Qf3 {[%clk 0:02:26.1]} 12...
g6 {[%clk 0:02:27.9]} 13. c3 {[%clk 0:02:20.5]} 13... Re7 {[%clk 0:02:17.1]} 14.
Nfe2 {[%clk 0:02:04.5]} 14... Ree8 {[%clk 0:02:08]} 15. Bg5 {[%clk 0:02:01.4]}
15... Ne4 {[%clk 0:01:43.3]} 16. Nxe4 {[%clk 0:01:52.5]} 16... dxe4 {[%clk
0:01:44.2]} 17. Bxe4 {[%clk 0:01:52.8]} 17... f5 {[%clk 0:01:44.6]} 18. Bc2
{[%clk 0:01:52.8]} 18... Bd5 {[%clk 0:01:44]} 19. Bb3 {[%clk 0:01:52.7]} 19...
Bxb3 {[%clk 0:01:30.8]} 20. axb3 {[%clk 0:01:53.6]} 20... Qb6 {[%clk 0:01:31.4]}
21. c4 {[%clk 0:01:42.3]} 21... Be7 {[%clk 0:01:25.9]} 22. Bxe7 {[%clk
0:01:39.6]} 22... Rxe7 {[%clk 0:01:26.8]} 23. Rfd1 {[%clk 0:01:17.2]} 23... Rae8
{[%clk 0:01:24.9]} 24. Nf4 {[%clk 0:01:14.9]} 24... Re4 {[%clk 0:01:24.6]} 25.
d5 {[%clk 0:01:03.1]} 25... Ne5 {[%clk 0:01:23.9]} 26. Qg3 {[%clk 0:01:01.1]}
26... Nf7 {[%clk 0:01:14.2]} 27. Nh5 {[%clk 0:00:54.5]} 27... Qd8 {[%clk
0:00:39.6]} 28. dxc6 {[%clk 0:00:52.1]} 28... Qe7 {[%clk 0:00:26.6]} 29. cxb7
{[%clk 0:00:50.6]} 29... f4 {[%clk 0:00:26.8]} 30. Nxf4 {[%clk 0:00:50]} 30...
Qxb7 {[%clk 0:00:26.7]} 31. Nd5 {[%clk 0:00:49.1]} 31... Kg7 {[%clk 0:00:25.4]}
32. Qc3+ {[%clk 0:00:48.1]} 32... Kf8 {[%clk 0:00:20.1]} 33. Nf6 {[%clk
0:00:45.4]} 33... Re2 {[%clk 0:00:20]} 34. Nxh7+ {[%clk 0:00:43.1]} 34... Ke7
{[%clk 0:00:20.4]} 35. Qf6# {[%clk 0:00:42.7]} 1-0